bitfinex/quotes_ETHUSD_20250808
["timestamp","ask_amount","ask_price","bid_price","bid_amount"]
[1754673101942,0.46000001,3991.4,3991.3,2.50544935]
[1754673102119,0.95970001,3991.4,3990.4,6.962]
[1754673102296,0.95970001,3991.4,3991.1,2.50553394]
[1754673102297,0.1256,3991.2,3991.1,2.50553394]
[1754673102630,1.0853,3991.2,3991.1,2.50553394]
[1754673102931,1.0853,3991.2,3990.7,2.50580603]
[1754673103129,0.1256,3991.0,3990.9,2.50565594]
[1754673103630,1.0853,3991.0,3990.9,2.50565594]
[1754673105605,1.0853,3991.0,3989.9,3.0]
[1754673105931,0.66346413,3991.3,3991.2,2.50551212]
[1754673106435,1e-08,3991.4,3991.3,2.50544935]
[1754673106655,1e-08,3991.4,3991.0,0.1256]
[1754673106798,0.9597,3991.3,3990.3,3.961]
[1754673107002,0.1256,3991.1,3991.0,2.50563768]
[1754673107898,0.1256,3991.1,3990.6,2.50584776]
[1754673107899,1.0853,3991.1,3990.6,2.50584776]
[1754673108095,1e-08,3991.4,3990.3,3.961]
[1754673108302,1e-08,3991.4,3991.3,2.50544935]
[1754673110103,0.46000001,3991.4,3991.3,2.50544935]
[1754673110305,1.12201642,3991.4,3990.4,3.0]
[1754673110557,0.46,3991.3,3991.2,2.50551212]
[1754673110943,0.5856,3991.3,3991.2,2.50551212]
[1754673112722,1.0853,3991.3,3991.1,2.50553033]
[1754673112905,1e-08,3991.4,3991.1,2.50553033]
[1754673112906,1.0853,3991.2,3991.1,2.50553033]
[1754673113303,0.1256,3991.2,3991.1,2.50553033]
[1754673113715,0.5856,3991.2,3991.1,2.50553033]
[1754673116145,0.1256,3991.2,3991.1,2.50553033]
[1754673118242,0.1256,3991.2,3991.1,12.6395359]
[1754673118443,1e-08,3991.4,3991.3,2.50544935]
[1754673119344,1e-08,3991.4,3991.3,4.96044788]
[1754673119647,1e-08,3991.4,3991.3,4.01994788]
[1754673120047,1e-08,3991.4,3991.3,4.96044788]
[1754673120357,1e-08,3991.4,3991.3,2.50544935]
[1754673120524,0.94310001,3991.4,3991.3,2.50544935]
[1754673120848,0.12560001,3991.4,3991.3,2.50544935]
[1754673121140,0.12560001,3991.4,3991.3,12.63945492]
[1754673121313,1e-08,3991.4,3991.3,12.63945492]
[1754673121514,1e-08,3991.4,3991.3,15.2326164]
[1754673121710,1e-08,3991.4,3991.3,5.09861083]
[1754673122110,1e-08,3991.4,3991.3,8.09861083]
[1754673124717,1e-08,3991.4,3991.3,18.2326164]
[1754673125437,1e-08,3991.4,3991.3,17.2921164]
[1754673126563,1e-08,3991.4,3991.3,17.7917164]
[1754673126940,1e-08,3991.4,3991.3,17.6661164]
[1754673127141,1e-08,3991.4,3991.3,18.1070164]
[1754673127319,1e-08,3991.4,3991.3,18.2326164]
[1754673127525,0.004,3992.2,3992.1,2.50494727]
[1754673127727,0.004,3992.2,3992.1,12.76455284]
[1754673128177,1e-08,3992.2,3992.1,18.62771072]
[1754673128658,0.54017884,3993.6,3993.3,2.50419452]
[1754673128831,6.017,3994.1,3993.3,12.63820009]
[1754673128832,0.1256,3993.5,3993.3,12.63820009]
[1754673129031,1.29260084,3994.0,3993.3,12.63820009]
[1754673129032,0.54017884,3994.0,3993.3,12.63820009]
[1754673129234,0.4613,3994.1,3993.3,12.76380009]
[1754673129454,0.2495,3993.7,3993.3,16.72080009]
[1754673130282,0.2495,3993.7,3993.3,6.58679452]
[1754673130627,0.2495,3993.7,3993.3,2.62979452]
[1754673130825,0.2495,3993.7,3993.3,3.14320157]
[1754673131047,0.2495,3993.7,3993.3,2.62979452]
[1754673131257,0.7108,3993.7,3993.3,2.62979452]
[1754673131468,0.3743,3993.7,3993.3,2.50419452]
[1754673131784,0.2495,3993.7,3993.3,2.62979452]
[1754673131983,4.9391,3993.4,3991.5,0.9405]
[1754673132127,2.01477673,3993.3,3991.3,1.52706148]
[1754673132326,2.50435733,3993.1,3991.9,2.5050251]
[1754673132529,0.96834248,3993.0,3991.0,15.1560051]
[1754673132762,2.5046826,3992.6,3991.7,2.50514515]
[1754673133061,3.956,3992.5,3991.9,2.50506898]
[1754673133265,3.956,3992.5,3991.8,3.00617733]
[1754673133266,7.40380293,3992.5,3991.8,3.00617733]
[1754673133472,2.5048709,3992.3,3991.2,6.46149244]
[1754673133689,2.5048709,3992.3,3991.3,2.50544935]
[1754673133963,0.4613,3992.2,3991.4,2.50537572]
[1754673134134,0.4613,3992.2,3991.5,2.50528228]
[1754673134334,2.9662313,3992.2,3991.4,2.50538371]
[1754673134568,2.9662313,3992.2,3991.5,3.00641199]
[1754673135078,2.96623124,3992.2,3991.5,3.00639669]
[1754673135237,2.50495304,3992.1,3991.5,0.50108872]
[1754673135435,2.50508963,3991.9,3991.2,2.50549543]
[1754673135740,2.96644897,3991.8,3991.1,2.50555511]
[1754673135970,3.955,3991.7,3991.1,2.50555511]
[1754673136475,3.955,3991.9,3991.5,2.50527443]
[1754673136626,3.955,3991.9,3991.6,0.25052744]
[1754673136830,3.955,3992.1,3991.6,0.25052744]
[1754673137069,3.955,3992.1,3991.1,0.9405]
[1754673137070,0.4613,3992.0,3991.5,2.50530629]
[1754673137365,0.4613,3992.0,3991.6,2.50524893]
[1754673137583,4.4368,3992.1,3991.7,2.50515138]
[1754673137584,3.955,3992.1,3991.7,2.50515138]
[1754673137861,3.955,3992.2,3991.7,2.50515138]
[1754673138079,2.96601493,3992.5,3991.7,2.50515138]
[1754673138080,0.4613,3992.5,3991.7,2.50515138]
[1754673138275,3.955,3992.2,3991.8,2.5051137]
[1754673138634,3.955,3992.2,3991.9,2.50505506]
[1754673138833,3.955,3992.2,3991.8,2.50511563]
[1754673139138,3.955,3992.2,3991.6,2.50520929]
[1754673139544,3.955,3992.2,3991.6,2.5052004]
[1754673139849,3.955,3992.2,3991.3,3.0]
[1754673140051,0.4613,3992.7,3991.7,12.65038712]
[1754673140253,0.04,3993.4,3992.2,12.65038712]
[1754673140454,0.752543,3993.3,3993.2,2.50424701]
[1754673140654,0.04,3993.4,3993.3,2.50419452]
[1754673141843,0.04,3993.4,3993.2,0.1256]
[1754673142042,0.04,3993.4,3993.3,2.50419452]
[1754673142243,0.04,3993.4,3993.2,0.1256]
[1754673142450,0.04,3993.4,3993.3,2.50419452]
[1754673143348,0.04,3993.4,3993.2,2.62984112]
[1754673143668,0.04,3993.4,3993.2,0.1256]
[1754673144033,0.04,3993.4,3993.2,2.62983271]
[1754673144235,0.4867,3993.4,3993.2,0.1256]
[1754673144471,0.4467,3993.3,3993.1,2.50431408]
[1754673144873,0.4467,3993.3,3993.1,3.01775058]
[1754673145632,0.04,3993.4,3993.3,2.50419452]
[1754673145840,0.04,3993.4,3993.1,0.5134365]
[1754673146047,0.04,3993.4,3993.3,2.50419452]
[1754673147064,0.04,3993.4,3992.5,3.42097953]
[1754673147245,0.04,3993.4,3993.1,2.50425789]
[1754673147565,0.4867,3993.4,3993.1,2.50425789]
[1754673147884,0.4867,3993.4,3992.5,6.42097953]
[1754673147885,0.8974,3993.3,3992.5,3.0]
[1754673148184,0.4467,3993.3,3993.0,2.50432621]
[1754673148540,2.54416912,3993.4,3992.5,5.50466954]
[1754673148748,0.8974,3993.2,3992.5,5.50466954]
[1754673148982,0.8974,3993.2,3992.7,2.50455074]
[1754673149280,0.8974,3993.2,3991.7,0.4557]
[1754673149281,2.50443059,3993.0,3991.7,0.4557]
[1754673149489,0.04,3993.4,3992.0,12.65038712]
[1754673149667,3.953,3993.0,3992.7,2.50453894]
[1754673150054,2.54414286,3993.4,3992.7,2.50453894]
[1754673150251,3.953,3993.3,3992.1,4.68623322]
[1754673150457,6.45719578,3993.3,3992.7,2.50452301]
[1754673150675,3.953,3993.3,3992.9,2.50443581]
[1754673150982,0.04,3993.4,3993.0,0.9163]
[1754673151141,0.04,3993.4,3993.3,2.50419452]
[1754673152153,0.04,3993.4,3993.3,3.42049452]
[1754673153446,0.04,3993.4,3993.3,2.50419452]
[1754673153768,0.04,3993.4,3993.3,2.95989452]
[1754673153969,0.04,3993.4,3993.3,4.47422764]
[1754673154181,0.04,3993.4,3993.3,7.93482764]
[1754673155355,0.04,3993.4,3993.3,7.01852764]
[1754673155679,0.04,3993.4,3993.3,7.59982764]
[1754673156058,0.04,3993.4,3993.3,12.01242764]
[1754673156259,0.04,3993.4,3993.3,11.88682764]
[1754673156646,0.2495,3993.7,3993.6,2.50400641]
[1754673156866,0.2495,3993.7,3993.6,24.01603519]
[1754673157057,0.2495,3993.7,3993.6,24.93233519]
[1754673157481,0.2495,3993.7,3993.6,7.41364807]
[1754673157646,0.2495,3993.7,3993.6,5.50400641]
[1754673157847,0.2495,3993.7,3993.6,10.37130641]
[1754673159581,0.2495,3993.7,3993.6,10.92130641]
[1754673160279,0.2495,3993.7,3993.6,10.37130641]
[1754673160484,0.2495,3993.7,3993.6,9.45500641]
[1754673160684,0.2495,3993.7,3993.6,13.4765965]
[1754673160685,1e-08,3993.7,3993.6,13.4765965]
[1754673161164,0.002,3993.8,3993.7,5.50394371]
[1754673161165,1e-08,3993.8,3993.7,5.50394371]
[1754673161366,0.01,3995.0,3994.3,2.50356758]
[1754673161549,0.01,3995.0,3994.3,15.1539547]
[1754673161749,0.01,3995.0,3994.9,2.50319156]
[1754673162898,0.4567,3995.0,3994.9,2.50319156]
[1754673163249,0.9074,3995.0,3994.9,2.50319156]
[1754673165499,0.9074,3995.0,3994.2,4.31]
[1754673165784,0.9074,3995.0,3994.5,2.50343849]
[1754673165785,0.8974,3994.9,3994.5,2.50343849]
[1754673165983,1.23522103,3994.8,3994.5,2.50343849]
[1754673166185,0.1248,3994.7,3994.5,2.50343849]
[1754673166349,0.1248,3994.7,3994.6,2.50337956]
[1754673166549,0.1348,3995.0,3994.5,0.1248]
[1754673166767,0.8974,3994.9,3994.4,2.62825917]
[1754673166993,0.8974,3994.8,3994.4,2.62825917]
[1754673167300,0.8974,3994.7,3994.5,2.5034394]
[1754673167460,0.8974,3994.6,3994.5,2.5034394]
[1754673167789,0.8974,3994.6,3994.2,2.50363026]
[1754673168084,0.8974,3994.5,3994.3,2.50355641]
[1754673168386,0.4507,3994.4,3994.2,2.50362013]
[1754673168693,0.4467,3994.3,3994.1,0.1248]
[1754673168856,0.8974,3994.3,3993.8,2.50387928]
[1754673169056,0.8974,3994.2,3993.8,2.50387928]
[1754673169252,0.1248,3994.3,3993.8,2.50388101]
[1754673169561,0.8974,3994.1,3993.6,0.1256]
[1754673169747,1.0222,3994.1,3993.6,2.62958824]
[1754673169954,0.8974,3994.0,3993.6,2.62958824]
[1754673170146,0.1248,3994.1,3993.7,2.5039343]
[1754673170352,0.4467,3993.9,3993.7,2.5039343]
[1754673170553,0.4467,3993.9,3993.7,2.50392878]
[1754673171194,0.8974,3993.8,3993.4,2.50409105]
[1754673171355,0.92264248,3993.7,3993.5,0.1256]
[1754673171556,0.1256,3993.6,3993.2,2.50421283]
[1754673171894,1.023,3993.6,3993.2,2.50420836]
[1754673172053,4.3997,3994.3,3993.5,2.50406911]
[1754673172252,0.1248,3994.1,3993.5,0.1256]
[1754673172603,0.1248,3994.5,3994.3,2.50355319]
[1754673172759,0.002,3994.6,3994.2,0.1248]
[1754673172949,0.002,3994.6,3994.5,2.50344223]
[1754673173385,0.002,3994.6,3994.5,3.54454223]
[1754673173664,0.002,3994.6,3994.5,3.08394223]
[1754673173868,0.002,3994.6,3994.5,2.62824223]
[1754673176464,0.002,3994.6,3994.5,0.1248]
[1754673176663,0.002,3994.6,3994.5,2.62824223]
[1754673177659,0.002,3994.6,3994.5,0.1248]
[1754673178083,0.002,3994.6,3994.5,2.50344223]
[1754673180371,0.002,3994.6,3994.1,8.7534]
[1754673180372,0.002,3994.6,3994.2,3.0]
[1754673180688,0.002,3994.6,3994.5,2.62824223]
[1754673181202,0.002,3994.6,3994.5,0.1248]
[1754673181362,0.002,3994.6,3994.5,2.62824223]
[1754673181563,0.9016,3994.6,3994.1,4.31]
[1754673181896,0.002,3994.6,3994.1,6.93846897]
[1754673182082,0.4402,3994.6,3994.1,6.93846897]
[1754673182283,0.002,3994.6,3994.5,2.50344223]
[1754673184685,0.002,3994.6,3994.5,3.47184223]
[1754673184885,0.002,3994.6,3994.5,4.08186226]
[1754673185510,0.002,3994.6,3994.5,3.60886226]
[1754673185783,0.002,3994.6,3994.5,2.50344223]
[1754673187825,0.002,3994.6,3994.5,2.99884223]
[1754673188393,0.002,3994.6,3994.5,3.47184223]
[1754673189524,0.002,3994.6,3994.5,6.47184223]
[1754673190228,0.002,3994.6,3994.5,10.78184223]
[1754673190530,0.002,3994.6,3994.5,13.33713232]
[1754673191499,0.002,3994.6,3994.5,13.88713232]
[1754673191997,1e-08,3995.0,3994.9,3.05319156]
[1754673192193,1e-08,3995.0,3994.9,2.50319156]
[1754673192397,1e-08,3995.0,3994.9,3.00383784]
[1754673192636,0.04,3995.4,3995.3,2.50294095]
[1754673192826,0.04,3995.4,3995.3,22.09932807]
[1754673193005,0.04,3995.4,3995.3,23.06772807]
[1754673193199,0.04,3995.4,3995.3,9.44894095]
[1754673193397,0.04,3995.4,3995.3,6.44894095]
[1754673193622,0.04,3995.4,3995.3,2.50294095]
[1754673194336,0.04,3995.4,3995.3,9.94434095]
[1754673194504,0.04,3995.4,3995.3,10.96734095]
[1754673196730,0.04,3995.4,3995.3,6.54834095]
[1754673196930,0.04,3995.4,3995.3,10.35308131]
[1754673197232,0.04,3995.4,3995.3,6.40808131]
[1754673197399,0.04,3995.4,3995.3,9.99794095]
[1754673197605,0.04,3995.4,3995.3,10.96634095]
[1754673197803,0.04,3995.4,3995.3,7.02134095]
[1754673198044,0.04,3995.4,3995.3,10.96634095]
[1754673198737,0.04,3995.4,3995.3,10.49334095]
[1754673198907,0.04,3995.4,3995.3,7.39988131]
[1754673199215,0.04,3995.4,3995.3,6.84988131]
[1754673200140,0.04,3995.4,3995.3,10.79388131]
[1754673200837,0.9396,3995.4,3995.3,2.50294095]
[1754673201046,0.04,3995.4,3995.3,6.44694095]
[1754673201334,0.04,3995.4,3995.3,23.14272807]
[1754673201536,0.04,3995.4,3995.3,23.61572807]
[1754673201740,0.04,3995.4,3995.3,26.17101816]
[1754673201914,0.04,3995.4,3995.3,21.20401816]
[1754673202123,0.04,3995.4,3995.3,25.20261816]
[1754673202326,0.04,3995.4,3995.3,25.32741816]
[1754673204748,0.04,3995.4,3995.3,24.77741816]
[1754673204911,0.04,3995.4,3995.3,20.83341816]
[1754673205242,0.04,3995.4,3995.3,12.12703104]
[1754673205427,0.04,3995.4,3995.3,9.57174095]
[1754673206019,0.04,3995.4,3995.3,11.04574095]
[1754673206340,0.002,3995.8,3995.7,2.50269039]
[1754673206645,0.002,3995.8,3995.7,22.09707751]
[1754673206839,0.002,3995.8,3995.7,23.02107751]
[1754673207043,0.002,3995.8,3995.7,12.00198048]
[1754673207351,0.002,3995.8,3995.7,12.12678048]
[1754673208346,0.04,3997.4,3997.3,2.50168863]
[1754673208642,0.04,3997.4,3997.3,6.44468863]
[1754673208810,0.04,3997.4,3997.3,7.02018863]
[1754673209011,0.04,3997.4,3997.3,6.56948863]
[1754673209434,0.9533,3997.4,3997.3,6.56948863]
[1754673209843,0.9533,3997.4,3997.3,2.62648863]
[1754673210133,0.9533,3997.4,3997.2,2.50174896]
[1754673210334,0.04,3997.4,3997.3,2.50168863]
[1754673210818,0.04,3997.4,3997.3,6.60933749]
[1754673211017,0.04,3997.4,3997.3,7.08263749]
[1754673211212,20.01501411,3998.0,3997.9,2.50131318]
[1754673211455,20.01501411,3998.0,3997.9,6.44431318]
[1754673211953,17.66950465,3998.0,3997.9,2.50131318]
[1754673212138,18.12380465,3998.0,3997.9,6.44431318]
[1754673212341,18.58280465,3998.0,3997.9,6.44431318]
[1754673212658,17.66950465,3998.0,3997.9,19.98927108]
[1754673212864,17.66950465,3998.0,3997.9,20.43997108]
[1754673213035,17.66950465,3998.0,3997.9,19.98927108]
[1754673213651,17.66950465,3998.0,3997.9,16.04627108]
[1754673213845,17.66950465,3998.0,3997.9,19.98927108]
[1754673214763,17.66950465,3998.0,3997.9,16.04627108]
[1754673215059,17.66950465,3998.0,3997.9,7.33788396]
[1754673215260,17.66950465,3998.0,3997.9,16.04627108]
[1754673215429,17.66950465,3998.0,3997.9,19.98827108]
[1754673215629,18.12380465,3998.0,3997.9,7.33788396]
[1754673216259,17.66950465,3998.0,3997.9,2.50131318]
[1754673216427,17.66950465,3998.0,3997.9,19.0937003]
[1754673216633,17.67150465,3998.0,3997.9,19.0937003]
[1754673217260,17.67150465,3998.0,3997.9,6.44231318]
[1754673217764,17.67150465,3998.0,3997.9,2.50131318]
[1754673217932,17.67150465,3998.0,3997.9,6.44231318]
[1754673218260,17.67150465,3998.0,3997.9,7.33668416]
[1754673218670,17.67150465,3998.0,3997.9,7.78738416]
[1754673218843,17.67150465,3998.0,3997.9,7.33668416]
[1754673219040,17.67150465,3998.0,3997.9,6.44231318]
[1754673219349,17.67150465,3998.0,3997.9,2.50131318]
[1754673219565,18.58480465,3998.0,3997.9,2.50131318]
[1754673219870,17.67150465,3998.0,3997.9,2.50131318]
[1754673220233,18.58480465,3998.0,3997.0,12.65038712]
[1754673220435,0.4543,3997.9,3997.8,2.50137575]
[1754673220664,0.9133,3997.9,3997.8,6.44237575]
[1754673220840,0.9133,3997.9,3997.8,6.56717575]
[1754673221041,0.9133,3997.9,3997.8,6.44237575]
[1754673221243,0.9133,3997.9,3997.8,2.50137575]
[1754673221458,0.9133,3997.9,3997.8,6.44237575]
[1754673221661,0.9133,3997.9,3996.9,2.50192309]
[1754673221970,0.4543,3997.9,3997.8,2.50137575]
[1754673222662,0.9133,3997.9,3997.8,2.50137575]
[1754673223168,17.67150465,3998.0,3997.9,2.50131318]
[1754673223672,18.12580465,3998.0,3997.9,2.50131318]
[1754673224443,17.67150465,3998.0,3997.9,2.50131318]
[1754673225537,18.12580465,3998.0,3997.1,12.65038712]
[1754673225771,18.58480465,3998.0,3997.9,2.50131318]
[1754673225970,18.12580465,3998.0,3997.9,2.50131318]
[1754673226174,17.67150465,3998.0,3997.9,6.44231318]
[1754673227574,17.67150465,3998.0,3997.9,2.50131318]
[1754673227886,18.58480465,3998.0,3997.9,2.50131318]
[1754673228054,17.67150465,3998.0,3997.9,6.44231318]
[1754673230178,17.67150465,3998.0,3997.9,2.50131318]
[1754673230382,17.67150465,3998.0,3997.9,6.44231318]
[1754673230583,18.58480465,3998.0,3997.9,2.50131318]
[1754673230952,18.58480465,3998.0,3997.2,7.31]
[1754673231152,0.4543,3997.9,3997.7,0.1248]
[1754673231457,17.67150465,3998.0,3997.9,2.50131318]
[1754673231680,23.78623511,3998.0,3997.7,0.1248]
[1754673232004,23.78623511,3998.0,3997.9,2.50131318]
[1754673232005,17.67150465,3998.0,3997.9,2.50131318]
[1754673232306,17.67150465,3998.0,3997.9,6.56611318]
[1754673232597,18.12580465,3998.0,3997.9,6.56611318]
[1754673233695,18.58480465,3998.0,3997.9,6.56611318]
[1754673233858,18.58480465,3998.0,3997.9,6.44131318]
[1754673234793,24.39576512,3998.0,3997.6,3.94]
[1754673234981,24.39576512,3998.0,3997.5,2.50151525]
[1754673234982,0.9396,3997.9,3997.5,2.50151525]
[1754673235290,0.1248,3997.7,3997.6,2.5015009]
[1754673235492,17.67150465,3998.0,3997.5,3.94]
[1754673235788,18.13530465,3998.0,3997.9,2.50131318]
[1754673236183,22.07530465,3998.0,3997.9,2.50131318]
[1754673236594,17.67150465,3998.0,3997.9,2.50131318]
[1754673236973,18.61110465,3998.0,3997.9,2.50131318]
[1754673237699,24.81869512,3998.0,3997.8,2.5013552]
[1754673237908,0.9396,3997.9,3997.6,2.5015009]
[1754673238061,23.87909512,3998.0,3997.5,0.1248]
[1754673238062,4.8796,3997.8,3997.5,0.1248]
[1754673238263,3.94,3997.7,3997.2,4.0648]
[1754673238464,4.4038,3997.8,3997.7,2.50143832]
[1754673238711,0.5396514,3997.9,3997.8,2.50137575]
[1754673238919,4.9434514,3997.9,3997.8,2.50137575]
[1754673240211,4.4038,3997.9,3997.8,2.50137575]
[1754673240409,7.67444086,3997.9,3997.3,3.94]
[1754673240565,7.13471047,3997.9,3997.7,2.50143781]
[1754673240761,0.4758,3997.8,3997.7,2.50143781]
[1754673240966,0.9396,3997.8,3997.7,2.50143781]
[1754673241289,0.4638,3997.8,3997.7,2.50143781]
[1754673241495,3.94,3997.9,3997.5,0.1248]
[1754673241673,3.94,3997.9,3997.3,6.44162873]
[1754673241674,0.96484248,3997.8,3997.2,2.50174351]
[1754673241881,4.8796,3997.7,3996.3,12.65138712]
[1754673242206,0.4638,3997.7,3997.4,2.50161099]
[1754673242405,3.94,3997.6,3997.4,2.50161099]
[1754673242568,3.94,3997.5,3997.4,2.50162605]
[1754673242767,0.53965178,3997.8,3997.5,10.09935571]
[1754673242975,4.8796,3997.7,3997.5,10.09935571]
[1754673243175,4.4158,3997.7,3997.5,10.09935571]
[1754673243380,0.9396,3997.6,3997.3,2.50167681]
[1754673243576,0.5396214,3997.8,3997.7,2.50143832]
[1754673243782,17.79630465,3998.0,3997.9,2.50131318]
[1754673244001,21.73630465,3998.0,3997.9,2.50131318]
[1754673244299,21.61150465,3998.0,3997.9,2.50131318]
[1754673244499,22.07530465,3998.0,3997.9,2.50131318]
[1754673244800,22.55110465,3998.0,3997.9,2.50131318]
[1754673246887,22.07530465,3998.0,3997.9,2.50131318]
[1754673247670,21.61150465,3998.0,3997.9,2.50131318]
[1754673248099,22.55110465,3998.0,3997.9,2.50131318]
[1754673248269,22.55110465,3998.0,3997.8,2.50132591]
[1754673248471,3.20719047,3997.9,3997.5,2.62635944]
[1754673248791,3.20719047,3997.9,3997.7,2.50143832]
[1754673248792,4.8796,3997.8,3997.7,2.50143832]
[1754673248991,4.8796,3997.8,3997.5,0.1248]
[1754673249300,5.99633169,3997.7,3997.3,0.1248]
[1754673249622,3.94,3997.6,3997.4,10.09935571]
[1754673249773,0.4638,3997.8,3997.5,0.1248]
[1754673249976,4.4038,3997.7,3997.5,2.6263528]
[1754673250772,17.67150465,3998.0,3997.5,2.62633973]
[1754673251000,4.47984359,3997.9,3997.5,2.62633973]
[1754673251204,4.47984359,3997.9,3997.5,0.1248]
[1754673251529,6.41773134,3997.9,3997.5,0.1248]
[1754673251807,0.4638,3997.8,3997.5,0.1248]
[1754673252002,3.94,3997.7,3997.5,0.1248]
[1754673252191,0.4638,3997.8,3997.5,0.1248]
[1754673252391,3.94,3997.7,3997.5,0.1248]
[1754673252596,0.4638,3997.8,3997.6,2.50148808]
[1754673252795,3.94,3997.8,3997.5,0.1248]
[1754673252968,3.94,3997.8,3997.7,10.09935571]
[1754673253172,3.94,3997.8,3997.7,12.60079403]
[1754673253592,3.94,3997.8,3997.5,2.62634118]
[1754673253773,0.9396,3997.7,3997.5,0.1248]
[1754673253973,3.94,3997.6,3997.5,2.62635999]
[1754673254172,0.4638,3997.7,3997.5,2.62635999]
[1754673254373,3.94,3997.6,3997.5,2.62635999]
[1754673254606,3.94,3997.6,3997.5,2.62636347]
[1754673254794,17.67150465,3998.0,3997.7,2.50139831]
[1754673255196,3.939,3997.9,3997.6,2.50148988]
[1754673255507,3.939,3997.8,3997.5,2.6263426]
[1754673255822,4.4028,3997.7,3997.5,0.1248]
[1754673256306,0.4638,3997.6,3997.5,2.62636335]
[1754673256620,3.939,3997.7,3997.5,2.62636335]
[1754673256824,4.4028,3997.7,3997.5,0.1248]
[1754673257116,0.4638,3997.6,3997.5,0.1248]
[1754673258232,4.8786,3997.6,3997.3,4.4348]
[1754673258433,3.939,3997.6,3997.5,2.50156347]
[1754673258642,3.939,3997.6,3997.3,17.03584312]
[1754673258838,3.939,3997.6,3997.3,10.22415571]
[1754673259000,4.4028,3997.6,3997.3,10.22415571]
[1754673259402,3.939,3997.6,3997.3,10.22415571]
[1754673259704,0.4638,3997.5,3997.3,10.22415571]
[1754673259905,3.939,3997.4,3997.3,0.1248]
[1754673261341,3.939,3997.4,3997.1,4.311]
[1754673261342,2.50175122,3997.2,3997.1,0.001]
[1754673261551,6.56555122,3997.2,3997.1,0.001]
[1754673261720,7.10552231,3997.2,3997.1,0.001]
[1754673261919,8.04512231,3997.2,3997.1,0.001]
[1754673262119,9.21208589,3997.2,3997.1,0.001]
[1754673264839,9.41205846,3997.2,3997.1,0.001]
[1754673265013,9.41105846,3997.2,3997.1,0.001]
[1754673266037,9.55150845,3997.2,3997.1,0.001]
[1754673266212,10.2254091,3997.2,3997.1,0.001]
[1754673266413,9.55150845,3997.2,3997.1,0.001]
[1754673267845,13.10250845,3997.2,3997.1,1e-08]
[1754673268449,14.44820708,3997.2,3997.1,1e-08]
[1754673268647,13.10186619,3997.2,3997.1,1e-08]
[1754673268946,13.10186619,3997.2,3996.3,0.001]
[1754673268947,2.50225202,3996.4,3996.3,0.001]
[1754673269144,10.30671724,3996.4,3996.3,0.001]
[1754673269345,12.5446358,3996.4,3996.3,0.001]
[1754673270509,8.25910744,3996.4,3996.3,0.001]
[1754673270748,3.66746555,3996.4,3996.3,0.001]
[1754673271048,4.0638,3996.4,3996.3,0.001]
[1754673271846,2.95610599,3996.8,3996.3,0.001]
[1754673272033,2.62705202,3996.4,3996.3,0.001]
[1754673272238,6.56605202,3996.4,3996.3,0.001]
[1754673272445,8.54490144,3996.4,3996.3,0.001]
[1754673272647,5.11694942,3996.4,3996.3,0.001]
[1754673272813,6.56605202,3996.4,3996.3,0.001]
[1754673273351,4.0638,3996.4,3996.3,0.001]
[1754673273544,6.56605202,3996.4,3996.3,0.001]
[1754673274247,2.62705202,3996.4,3996.3,0.001]
[1754673274548,6.56605202,3996.4,3996.3,0.001]
[1754673274750,3.57927558,3996.4,3996.3,0.001]
[1754673275053,5.01602356,3996.4,3996.3,0.001]
[1754673275253,4.0638,3996.4,3996.3,0.001]
[1754673275720,0.1248,3996.4,3996.3,0.001]
[1754673276240,4.0638,3996.4,3996.3,0.001]
[1754673277953,0.1248,3996.4,3996.3,0.001]
[1754673278132,4.0638,3996.4,3996.3,2.99901464]
[1754673278323,4.0638,3996.4,3996.3,0.4967]
[1754673278837,0.1248,3996.4,3996.3,13.55617035]
[1754673279349,0.1248,3996.8,3996.3,3.45681464]
[1754673279542,3.938,3996.7,3996.5,2.50218941]
[1754673279743,3.938,3996.7,3996.6,3.4556268]
[1754673279940,3.938,3996.7,3996.6,0.9535]
[1754673280249,3.938,3996.7,3996.3,0.001]
[1754673280453,0.1248,3996.4,3996.3,0.001]
[1754673281845,2.62705202,3996.4,3996.3,0.001]
[1754673282232,3.08115202,3996.4,3996.3,0.001]
[1754673283040,3.4531945,3996.4,3996.3,0.001]
[1754673283340,4.44252817,3996.4,3996.3,0.001]
[1754673284255,8.38052817,3996.4,3996.3,0.001]
[1754673284551,8.89316151,3996.4,3996.3,0.001]
[1754673285257,12.70596619,3996.4,3996.3,1e-08]
[1754673285566,12.03327624,3996.4,3996.3,1e-08]
[1754673285943,12.03327624,3996.4,3995.9,1e-08]
[1754673285944,3.0525025,3996.0,3995.9,1e-08]
[1754673286146,20.25521542,3996.0,3995.9,1e-08]
[1754673286353,20.76784876,3996.0,3995.9,1e-08]
[1754673286558,21.69354876,3996.0,3995.9,1e-08]
[1754673289158,6.0530036,3995.2,3995.1,1e-08]
[1754673289324,16.67999415,3995.2,3995.1,1e-08]
[1754673289532,17.60569415,3995.2,3995.1,1e-08]
[1754673289847,17.60568388,3995.2,3995.1,1e-08]
[1754673290739,17.60568388,3995.2,3994.4,0.001]
[1754673290740,6.05331689,3994.7,3994.4,0.001]
[1754673291058,12.05726755,3994.7,3994.4,0.001]
[1754673291257,12.98296755,3994.7,3994.4,0.001]
[1754673291458,12.31054812,3994.7,3994.4,0.001]
[1754673292430,0.55,3994.6,3994.4,1e-08]
[1754673292664,21.40209523,3994.5,3994.4,1e-08]
[1754673292864,21.91472857,3994.5,3994.4,1e-08]
[1754673293160,22.96522857,3994.5,3994.4,1e-08]
[1754673293334,23.10525611,3994.5,3994.4,1e-08]
[1754673294340,5.50356758,3994.3,3994.2,1e-08]
[1754673294541,9.67989319,3994.3,3994.2,1e-08]
[1754673294848,10.1052434,3994.3,3994.2,0.90250001]
[1754673295343,0.66267582,3994.3,3994.2,0.90250001]
[1754673295552,6.56736758,3994.3,3994.2,0.90250001]
[1754673295863,4.0638,3994.3,3994.2,0.90250001]
[1754673296034,6.56736758,3994.3,3994.2,0.45300001]
[1754673297332,6.56736758,3994.3,3994.2,1e-08]